{"text_format":"1","workbook":"xlsx","n_sheets":3,"sheets":["Лист1","Лист2","Лист3"],"not_rendered":{"charts":0,"images":0,"macros":1,"external_links":0,"defined_names":3,"comments":0,"pivot_tables":1},"unopened":[],"bounds":{"document_bytes":16777216,"sheet_cells":100000,"rows_first":2000,"rows_last":500,"rows_between":2000,"halvings":0,"cell_chars":16384,"cell_head_chars":4096},"cells_cut":0,"cells_raw":0,"read":"whole","date_system":"1900"}

{"sheet":"Лист1","index":0,"n_rows":19,"n_cols":3,"rows_kept":19,"cut":false,"hidden":false,"merged":[]}
["Месяц","Сумма в грн.","Отправители полные"]
[1,5064.26,{"$f":"INDEX(Таблица2[Отправители полные],GETPIVOTDATA(\"Столбец1\",Лист3!$A$3,\"Сумма в грн.\",Таблица3[[#This Row],[Сумма в грн.]],\"Месяц\",Таблица3[[#This Row],[Месяц]]))","v":"ANLAS IC VE DIS TICARET LTD.STI Ihsaniye Mahallesi Cilek Sokak Alp Residence Evleri NILUFER/BURSA Туре"}]
[1,460.39,{"$f":"INDEX(Таблица2[Отправители полные],GETPIVOTDATA(\"Столбец1\",Лист3!$A$3,\"Сумма в грн.\",Таблица3[[#This Row],[Сумма в грн.]],\"Месяц\",Таблица3[[#This Row],[Месяц]]))","v":"Mercedes-Benz Polska Sp. z.o.o. 02-460 Warszawa ul.Gottlieba Daimlera 1"}]
[1,483.52,{"$f":"INDEX(Таблица2[Отправители полные],GETPIVOTDATA(\"Столбец1\",Лист3!$A$3,\"Сумма в грн.\",Таблица3[[#This Row],[Сумма в грн.]],\"Месяц\",Таблица3[[#This Row],[Месяц]]))","v":"ООО \"Лоск\""}]
[1,1052.31,{"$f":"INDEX(Таблица2[Отправители полные],GETPIVOTDATA(\"Столбец1\",Лист3!$A$3,\"Сумма в грн.\",Таблица3[[#This Row],[Сумма в грн.]],\"Месяц\",Таблица3[[#This Row],[Месяц]]))","v":"ANLAS IC VE DIS TICARET LTD.STI Ihsaniye Mahallesi Cilek Sokak Alp Residence Evleri NILUFER/BURSA Туре"}]
[1,1296.1099999999999,{"$f":"INDEX(Таблица2[Отправители полные],GETPIVOTDATA(\"Столбец1\",Лист3!$A$3,\"Сумма в грн.\",Таблица3[[#This Row],[Сумма в грн.]],\"Месяц\",Таблица3[[#This Row],[Месяц]]))","v":"ООО \"Камоцци Пневматика\" 125009 г.Москва, ул. Тверская, 20/1 стр. 1 Россия"}]
[1,58057.5,{"$f":"INDEX(Таблица2[Отправители полные],GETPIVOTDATA(\"Столбец1\",Лист3!$A$3,\"Сумма в грн.\",Таблица3[[#This Row],[Сумма в грн.]],\"Месяц\",Таблица3[[#This Row],[Месяц]]))","v":"ANLAS IC VE DIS TICARET LTD.STI Ihsaniye Mahallesi Cilek Sokak Alp Residence Evleri NILUFER/BURSA Туре"}]
[3,4627.13,{"$f":"INDEX(Таблица2[Отправители полные],GETPIVOTDATA(\"Столбец1\",Лист3!$A$3,\"Сумма в грн.\",Таблица3[[#This Row],[Сумма в грн.]],\"Месяц\",Таблица3[[#This Row],[Месяц]]))","v":"Иностранное торговое унитарное предприятие\"КАМОЦЦИ-ПНЕВМАТИК\" 220070 Беларусь, г. Минскул. Переходная, 64, 1-й этаж"}]
[3,41836.620000000003,{"$f":"INDEX(Таблица2[Отправители полные],GETPIVOTDATA(\"Столбец1\",Лист3!$A$3,\"Сумма в грн.\",Таблица3[[#This Row],[Сумма в грн.]],\"Месяц\",Таблица3[[#This Row],[Месяц]]))","v":"ООО \"ГПЛ\""}]
[2,7151.07,{"$f":"INDEX(Таблица2[Отправители полные],GETPIVOTDATA(\"Столбец1\",Лист3!$A$3,\"Сумма в грн.\",Таблица3[[#This Row],[Сумма в грн.]],\"Месяц\",Таблица3[[#This Row],[Месяц]]))","v":"ООО \"Камоцци Пневматика\" 125009 г.Москва, ул. Тверская, 20/1 стр. 1 Россия"}]
[3,54645.63,{"$f":"INDEX(Таблица2[Отправители полные],GETPIVOTDATA(\"Столбец1\",Лист3!$A$3,\"Сумма в грн.\",Таблица3[[#This Row],[Сумма в грн.]],\"Месяц\",Таблица3[[#This Row],[Месяц]]))","v":"Иностранное торговое унитарное предприятие\"КАМОЦЦИ-ПНЕВМАТИК\" 220070 Беларусь, г. Минскул. Переходная, 64, 1-й этаж"}]
[1,2959.63,{"$f":"INDEX(Таблица2[Отправители полные],GETPIVOTDATA(\"Столбец1\",Лист3!$A$3,\"Сумма в грн.\",Таблица3[[#This Row],[Сумма в грн.]],\"Месяц\",Таблица3[[#This Row],[Месяц]]))","v":"ANLAS IC VE DIS TICARET LTD.STI Ihsaniye Mahallesi Cilek Sokak Alp Residence Evleri NILUFER/BURSA Туре"}]
[1,10260.06,{"$f":"INDEX(Таблица2[Отправители полные],GETPIVOTDATA(\"Столбец1\",Лист3!$A$3,\"Сумма в грн.\",Таблица3[[#This Row],[Сумма в грн.]],\"Месяц\",Таблица3[[#This Row],[Месяц]]))","v":"ANLAS IC VE DIS TICARET LTD.STI Ihsaniye Mahallesi Cilek Sokak Alp Residence Evleri NILUFER/BURSA Туре"}]
[1,9322.67,{"$f":"INDEX(Таблица2[Отправители полные],GETPIVOTDATA(\"Столбец1\",Лист3!$A$3,\"Сумма в грн.\",Таблица3[[#This Row],[Сумма в грн.]],\"Месяц\",Таблица3[[#This Row],[Месяц]]))","v":"ООО \"Камоцци Пневматика\" 125009 г.Москва, ул. Тверская, 20/1 стр. 1 Россия"}]
[2,23587.200000000001,{"$f":"INDEX(Таблица2[Отправители полные],GETPIVOTDATA(\"Столбец1\",Лист3!$A$3,\"Сумма в грн.\",Таблица3[[#This Row],[Сумма в грн.]],\"Месяц\",Таблица3[[#This Row],[Месяц]]))","v":"ООО \"Камоцци Пневматика\" 125009 г.Москва, ул. Тверская, 20/1 стр. 1 Россия"}]
[1,1844.17,{"$f":"INDEX(Таблица2[Отправители полные],GETPIVOTDATA(\"Столбец1\",Лист3!$A$3,\"Сумма в грн.\",Таблица3[[#This Row],[Сумма в грн.]],\"Месяц\",Таблица3[[#This Row],[Месяц]]))","v":"ООО \"Камоцци Пневматика\" 125009 г.Москва, ул. Тверская, 20/1 стр. 1 Россия"}]
[2,6842.62,{"$f":"INDEX(Таблица2[Отправители полные],GETPIVOTDATA(\"Столбец1\",Лист3!$A$3,\"Сумма в грн.\",Таблица3[[#This Row],[Сумма в грн.]],\"Месяц\",Таблица3[[#This Row],[Месяц]]))","v":"ООО \"Камоцци Пневматика\" 125009 г.Москва, ул. Тверская, 20/1 стр. 1 Россия"}]
[1,4173.1899999999996,{"$f":"INDEX(Таблица2[Отправители полные],GETPIVOTDATA(\"Столбец1\",Лист3!$A$3,\"Сумма в грн.\",Таблица3[[#This Row],[Сумма в грн.]],\"Месяц\",Таблица3[[#This Row],[Месяц]]))","v":"ООО \"Камоцци Пневматика\" 125009 г.Москва, ул. Тверская, 20/1 стр. 1 Россия"}]
[1,41836.620000000003,{"$f":"INDEX(Таблица2[Отправители полные],GETPIVOTDATA(\"Столбец1\",Лист3!$A$3,\"Сумма в грн.\",Таблица3[[#This Row],[Сумма в грн.]],\"Месяц\",Таблица3[[#This Row],[Месяц]]))","v":"ООО \"Камоцци Пневматика\" 125009 г.Москва, ул. Тверская, 20/1 стр. 1 Россия"}]

{"sheet":"Лист2","index":1,"n_rows":19,"n_cols":5,"rows_kept":19,"cut":false,"hidden":false,"merged":[]}
[null,"Сумма в грн.","Месяц","Отправители полные","Столбец1"]
[null,5064.26,1,"ANLAS IC VE DIS TICARET LTD.STI Ihsaniye Mahallesi Cilek Sokak Alp Residence Evleri NILUFER/BURSA Туре",{"$f":"ROW()-1","v":1}]
[null,460.39,1,"Mercedes-Benz Polska Sp. z.o.o. 02-460 Warszawa ul.Gottlieba Daimlera 1",2]
[null,41836.620000000003,1,"ООО \"Камоцци Пневматика\" 125009 г.Москва, ул. Тверская, 20/1 стр. 1 Россия",3]
[null,1052.31,1,"ANLAS IC VE DIS TICARET LTD.STI Ihsaniye Mahallesi Cilek Sokak Alp Residence Evleri NILUFER/BURSA Туре",4]
[null,1296.1099999999999,1,"ООО \"Камоцци Пневматика\" 125009 г.Москва, ул. Тверская, 20/1 стр. 1 Россия",5]
[null,58057.5,1,"ANLAS IC VE DIS TICARET LTD.STI Ihsaniye Mahallesi Cilek Sokak Alp Residence Evleri NILUFER/BURSA Туре",6]
[null,4627.13,3,"Иностранное торговое унитарное предприятие\"КАМОЦЦИ-ПНЕВМАТИК\" 220070 Беларусь, г. Минскул. Переходная, 64, 1-й этаж",7]
[null,41836.620000000003,3,"ООО \"ГПЛ\"",8]
[null,7151.07,2,"ООО \"Камоцци Пневматика\" 125009 г.Москва, ул. Тверская, 20/1 стр. 1 Россия",9]
[null,54645.63,3,"Иностранное торговое унитарное предприятие\"КАМОЦЦИ-ПНЕВМАТИК\" 220070 Беларусь, г. Минскул. Переходная, 64, 1-й этаж",10]
[null,2959.63,1,"ANLAS IC VE DIS TICARET LTD.STI Ihsaniye Mahallesi Cilek Sokak Alp Residence Evleri NILUFER/BURSA Туре",11]
[null,10260.06,1,"ANLAS IC VE DIS TICARET LTD.STI Ihsaniye Mahallesi Cilek Sokak Alp Residence Evleri NILUFER/BURSA Туре",12]
[null,9322.67,1,"ООО \"Камоцци Пневматика\" 125009 г.Москва, ул. Тверская, 20/1 стр. 1 Россия",13]
[null,23587.200000000001,2,"ООО \"Камоцци Пневматика\" 125009 г.Москва, ул. Тверская, 20/1 стр. 1 Россия",14]
[null,1844.17,1,"ООО \"Камоцци Пневматика\" 125009 г.Москва, ул. Тверская, 20/1 стр. 1 Россия",15]
[null,6842.62,2,"ООО \"Камоцци Пневматика\" 125009 г.Москва, ул. Тверская, 20/1 стр. 1 Россия",16]
[null,4173.1899999999996,1,"ООО \"Камоцци Пневматика\" 125009 г.Москва, ул. Тверская, 20/1 стр. 1 Россия",17]
[null,483.52,1,"ООО \"Лоск\"",18]

{"sheet":"Лист3","index":2,"n_rows":22,"n_cols":5,"rows_kept":22,"cut":false,"hidden":false,"merged":[]}
[]
[]
["Сумма по полю Столбец1","Названия столбцов"]
["Названия строк",1,2,3,"Общий итог"]
[460.39,2,null,null,2]
[483.52,18,null,null,18]
[1052.31,4,null,null,4]
[1296.1099999999999,5,null,null,5]
[1844.17,15,null,null,15]
[2959.63,11,null,null,11]
[4173.1899999999996,17,null,null,17]
[4627.13,null,null,7,7]
[5064.26,1,null,null,1]
[6842.62,null,16,null,16]
[7151.07,null,9,null,9]
[9322.67,13,null,null,13]
[10260.06,12,null,null,12]
[23587.200000000001,null,14,null,14]
[41836.620000000003,3,null,8,11]
[54645.63,null,null,10,10]
[58057.5,6,null,null,6]
["Общий итог",107,39,25,171]